[Event "December 12 Late 2023"]
[Site "https://www.chess.com"]
[Date "2023.12.12"]
[Round "3"]
[White "Oliveira, Tiago Batista"]
[Black "Bazzano, Sebastian"]
[Result "1-0"]
[Board "154"]
[TimeControl "180+1"]
[WhiteFideId "2108291"]
[BlackFideId "104566"]
[WhiteElo "2080"]
[BlackElo "2317"]
[WhiteTeam "BRA"]
[BlackTeam "ARG"]
[WhiteClock "0:00:03"]
[BlackClock "0:00:00"]

1. d4 {[%clk 0:03:00]}  Nf6 {[%clk 0:02:57]} 2. c4 {[%clk 0:03:00]}  c5 {[%clk 0:02:55]} 3. d5 {[%clk 0:03:00]}  e6 {[%clk 0:02:55]} 4. Nc3 {[%clk 0:03:00]}  exd5 {[%clk 0:02:56]} 5. cxd5 {[%clk 0:03:01]}  d6 {[%clk 0:02:56]} 6. g3 {[%clk 0:03:01]}  g6 {[%clk 0:02:56]} 7. Bg2 {[%clk 0:03:01]}  Bg7 {[%clk 0:02:56]} 8. Nf3 {[%clk 0:03:02]}  O-O {[%clk 0:02:56]} 9. O-O {[%clk 0:03:02]}  a6 {[%clk 0:02:56]} 10. a4 {[%clk 0:03:02]}  Re8 {[%clk 0:02:55]} 11. Re1 {[%clk 0:03:02]}  Nbd7 {[%clk 0:02:54]} 12. Nd2 {[%clk 0:03:00]}  Rb8 {[%clk 0:02:51]} 13. Nc4 {[%clk 0:02:58]}  Ne5 {[%clk 0:02:51]} 14. Nxe5 {[%clk 0:02:57]}  Rxe5 {[%clk 0:02:51]} 15. Bf4 {[%clk 0:02:57]}  Re8 {[%clk 0:02:51]} 16. e4 {[%clk 0:02:58]}  b5 {[%clk 0:02:46]} 17. axb5 {[%clk 0:02:55]}  axb5 {[%clk 0:02:45]} 18. e5 {[%clk 0:02:55]}  Ng4 {[%clk 0:02:00]} 19. e6 {[%clk 0:02:09]}  Ne5 {[%clk 0:01:53]} 20. exf7+ {[%clk 0:02:07]}  Nxf7 {[%clk 0:01:40]} 21. Rxe8+ {[%clk 0:02:04]}  Qxe8 {[%clk 0:01:41]} 22. Ne4 {[%clk 0:01:56]}  Qe7 {[%clk 0:00:51]} 23. Nxc5 {[%clk 0:01:53]}  Bxb2 {[%clk 0:00:41]} 24. Rb1 {[%clk 0:01:30]}  Be5 {[%clk 0:00:31]} 25. Ne6 {[%clk 0:00:49]}  Bxe6 {[%clk 0:00:22]} 26. dxe6 {[%clk 0:00:49]}  Qxe6 {[%clk 0:00:22]} 27. Bd5 {[%clk 0:00:49]}  Qf6 {[%clk 0:00:22]} 28. Be3 {[%clk 0:00:47]}  Kg7 {[%clk 0:00:20]} 29. Qb3 {[%clk 0:00:45]}  b4 {[%clk 0:00:10]} 30. f4 {[%clk 0:00:38]}  Bc3 {[%clk 0:00:10]} 31. Kg2 {[%clk 0:00:25]}  Nh6 {[%clk 0:00:09]} 32. h3 {[%clk 0:00:21]}  Re8 {[%clk 0:00:09]} 33. Bf2 {[%clk 0:00:20]}  Nf5 {[%clk 0:00:08]} 34. Qc4 {[%clk 0:00:12]}  Ne3+ {[%clk 0:00:05]} 35. Bxe3 {[%clk 0:00:11]}  Rxe3 {[%clk 0:00:06]} 36. Qc7+ {[%clk 0:00:10]}  Kh6 {[%clk 0:00:06]} 37. Bf3 {[%clk 0:00:08]}  Qd4 {[%clk 0:00:03]} 38. Qd7 {[%clk 0:00:05]}  Qd2+ {[%clk 0:00:03]} 39. Kh1 {[%clk 0:00:03]}  Rxf3 {[%clk 0:00:03]} 40. Qg4 {[%clk 0:00:03]}  Rf2 {[%clk 0:00:02]} 41. Qg5+ {[%clk 0:00:02]}  Kg7 {[%clk 0:00:02]} 42. Qe7+ {[%clk 0:00:02]}  Kg8 {[%clk 0:00:02]} 43. Qd8+ {[%clk 0:00:02]}  Kg7 {[%clk 0:00:00]} 44. Qe7+ {[%clk 0:00:03]} 1-0

[Event "December 12 Late 2023"]
[Site "https://www.chess.com"]
[Date "2023.12.12"]
[Round "3"]
[White "Adamczyk, Zuzanna"]
[Black "Hernandez Bonilla, Amelia"]
[Result "1-0"]
[Board "157"]
[TimeControl "180+1"]
[WhiteFideId "1187570"]
[BlackFideId "3900193"]
[WhiteElo "2307"]
[BlackElo "2034"]
[WhiteTeam "POL"]
[BlackTeam "VEN"]
[WhiteClock "0:01:34"]
[BlackClock "0:01:36"]

1. d4 {[%clk 0:03:00]}  Nf6 {[%clk 0:02:59]} 2. Nf3 {[%clk 0:03:01]}  e6 {[%clk 0:02:59]} 3. g3 {[%clk 0:03:02]}  d5 {[%clk 0:02:59]} 4. Bg2 {[%clk 0:03:02]}  Be7 {[%clk 0:02:58]} 5. O-O {[%clk 0:03:02]}  O-O {[%clk 0:02:58]} 6. c4 {[%clk 0:03:03]}  c6 {[%clk 0:02:54]} 7. Nc3 {[%clk 0:03:03]}  b6 {[%clk 0:02:52]} 8. Ne5 {[%clk 0:02:41]}  Bb7 {[%clk 0:02:51]} 9. Bf4 {[%clk 0:02:35]}  Nfd7 {[%clk 0:02:45]} 10. Rc1 {[%clk 0:02:26]}  Nxe5 {[%clk 0:02:41]} 11. dxe5 {[%clk 0:02:27]}  Nd7 {[%clk 0:02:39]} 12. cxd5 {[%clk 0:02:23]}  exd5 {[%clk 0:02:36]} 13. e4 {[%clk 0:02:23]}  dxe4 {[%clk 0:02:27]} 14. Nxe4 {[%clk 0:02:19]}  c5 {[%clk 0:02:19]} 15. Nf6+ {[%clk 0:02:16]}  gxf6 {[%clk 0:02:15]} 16. Bxb7 {[%clk 0:02:13]}  fxe5 {[%clk 0:02:15]} 17. Bh6 {[%clk 0:02:04]}  Nf6 {[%clk 0:02:05]} 18. Bxf8 {[%clk 0:01:58]}  Qxd1 {[%clk 0:02:04]} 19. Rcxd1 {[%clk 0:01:44]}  Rxf8 {[%clk 0:02:05]} 20. Rfe1 {[%clk 0:01:41]}  Rb8 {[%clk 0:01:49]} 21. Bc6 {[%clk 0:01:37]}  Rc8 {[%clk 0:01:36]} 22. Rxe5 {[%clk 0:01:34]} 1-0

[Event "December 12 Late 2023"]
[Site "https://www.chess.com"]
[Date "2023.12.12"]
[Round "3"]
[White "Biliy, Vadim"]
[Black "Gulamirian, Korun"]
[Result "1-0"]
[Board "158"]
[TimeControl "180+1"]
[WhiteFideId "14114127"]
[BlackFideId "4144899"]
[WhiteElo "2292"]
[BlackElo "2023"]
[WhiteTeam "UKR"]
[BlackTeam "RUS"]
[WhiteClock "0:00:47"]
[BlackClock "0:00:00"]

1. d4 {[%clk 0:02:55]}  Nf6 {[%clk 0:01:07]} 2. Nf3 {[%clk 0:02:52]}  g6 {[%clk 0:01:06]} 3. e3 {[%clk 0:02:52]}  Bg7 {[%clk 0:01:07]} 4. Be2 {[%clk 0:02:53]}  O-O {[%clk 0:01:07]} 5. O-O {[%clk 0:02:53]}  c6 {[%clk 0:01:07]} 6. b4 {[%clk 0:02:53]}  d5 {[%clk 0:01:07]} 7. c3 {[%clk 0:02:53]}  Nbd7 {[%clk 0:01:03]} 8. a4 {[%clk 0:02:51]}  a5 {[%clk 0:01:02]} 9. b5 {[%clk 0:02:51]}  c5 {[%clk 0:01:03]} 10. Ba3 {[%clk 0:02:50]}  b6 {[%clk 0:01:02]} 11. Nbd2 {[%clk 0:02:48]}  Ne4 {[%clk 0:01:01]} 12. Rc1 {[%clk 0:02:44]}  Re8 {[%clk 0:00:57]} 13. Bd3 {[%clk 0:02:39]}  f5 {[%clk 0:00:50]} 14. Bxe4 {[%clk 0:01:56]}  fxe4 {[%clk 0:00:47]} 15. Ng5 {[%clk 0:01:49]}  e5 {[%clk 0:00:43]} 16. f4 {[%clk 0:01:42]}  exf3 {[%clk 0:00:42]} 17. Ndxf3 {[%clk 0:01:37]}  exd4 {[%clk 0:00:37]} 18. exd4 {[%clk 0:01:32]}  c4 {[%clk 0:00:36]} 19. Qd2 {[%clk 0:01:13]}  Nf6 {[%clk 0:00:31]} 20. Qf4 {[%clk 0:01:08]}  Bg4 {[%clk 0:00:20]} 21. Ne5 {[%clk 0:01:05]}  Bf5 {[%clk 0:00:13]} 22. Ngf7 {[%clk 0:01:02]}  Qb8 {[%clk 0:00:09]} 23. Nh6+ {[%clk 0:01:00]}  Bxh6 {[%clk 0:00:04]} 24. Qxh6 {[%clk 0:01:00]}  Rxe5 {[%clk 0:00:01]} 25. dxe5 {[%clk 0:00:56]}  Qxe5 {[%clk 0:00:00]} 26. Qf4 {[%clk 0:00:47]} 1-0

[Event "December 12 Late 2023"]
[Site "https://www.chess.com"]
[Date "2023.12.12"]
[Round "4"]
[White "Melkumyan, Hrant"]
[Black "Dubov, Daniil"]
[Result "1/2-1/2"]
[Board "2"]
[TimeControl "180+1"]
[WhiteFideId "13302485"]
[BlackFideId "24126055"]
[WhiteElo "2903"]
[BlackElo "3124"]
[WhiteTeam "ARM"]
[BlackTeam "RUS"]
[WhiteClock "0:00:06"]
[BlackClock "0:00:03"]

1. Nf3 {[%clk 0:02:50]}  Nf6 {[%clk 0:02:59]} 2. c4 {[%clk 0:02:49]}  g6 {[%clk 0:02:59]} 3. Nc3 {[%clk 0:02:47]}  Bg7 {[%clk 0:03:00]} 4. g3 {[%clk 0:02:46]}  b6 {[%clk 0:02:58]} 5. Bg2 {[%clk 0:02:45]}  Bb7 {[%clk 0:02:59]} 6. O-O {[%clk 0:02:46]}  c5 {[%clk 0:02:57]} 7. d4 {[%clk 0:02:45]}  cxd4 {[%clk 0:02:57]} 8. Qxd4 {[%clk 0:02:46]}  d6 {[%clk 0:02:57]} 9. Rd1 {[%clk 0:02:45]}  Nbd7 {[%clk 0:02:57]} 10. b3 {[%clk 0:02:42]}  Rc8 {[%clk 0:02:56]} 11. Bb2 {[%clk 0:02:42]}  a6 {[%clk 0:02:55]} 12. Rac1 {[%clk 0:02:41]}  O-O {[%clk 0:02:54]} 13. Qd2 {[%clk 0:02:36]}  Rc5 {[%clk 0:02:54]} 14. Ne1 {[%clk 0:02:29]}  Qa8 {[%clk 0:02:49]} 15. Bxb7 {[%clk 0:02:16]}  Qxb7 {[%clk 0:02:50]} 16. Nd3 {[%clk 0:02:16]}  Rf5 {[%clk 0:02:45]} 17. Nb4 {[%clk 0:01:58]}  e6 {[%clk 0:02:14]} 18. Qxd6 {[%clk 0:01:43]}  Rc8 {[%clk 0:02:13]} 19. Qd2 {[%clk 0:01:32]}  Ne5 {[%clk 0:01:59]} 20. Qe1 {[%clk 0:01:05]}  Nfg4 {[%clk 0:01:51]} 21. f4 {[%clk 0:00:39]}  Ne3 {[%clk 0:01:31]} 22. Qf2 {[%clk 0:00:39]}  Nxd1 {[%clk 0:01:26]} 23. Rxd1 {[%clk 0:00:39]}  Nc6 {[%clk 0:00:57]} 24. Nxc6 {[%clk 0:00:39]}  Qxc6 {[%clk 0:00:57]} 25. Na4 {[%clk 0:00:40]}  Bxb2 {[%clk 0:00:47]} 26. Nxb2 {[%clk 0:00:41]}  b5 {[%clk 0:00:46]} 27. Nd3 {[%clk 0:00:37]}  bxc4 {[%clk 0:00:44]} 28. bxc4 {[%clk 0:00:38]}  Qa4 {[%clk 0:00:36]} 29. Rb1 {[%clk 0:00:21]}  Qxa2 {[%clk 0:00:31]} 30. Qe1 {[%clk 0:00:18]}  Qa5 {[%clk 0:00:27]} 31. c5 {[%clk 0:00:14]}  Qxe1+ {[%clk 0:00:19]} 32. Rxe1 {[%clk 0:00:15]}  Rd5 {[%clk 0:00:11]} 33. Ra1 {[%clk 0:00:14]}  Ra8 {[%clk 0:00:12]} 34. Kf2 {[%clk 0:00:12]}  a5 {[%clk 0:00:09]} 35. Ke3 {[%clk 0:00:12]}  Kf8 {[%clk 0:00:09]} 36. Kd2 {[%clk 0:00:13]}  Ke7 {[%clk 0:00:09]} 37. Kc3 {[%clk 0:00:13]}  a4 {[%clk 0:00:07]} 38. Ra3 {[%clk 0:00:10]}  h5 {[%clk 0:00:04]} 39. Kc4 {[%clk 0:00:10]}  Rdd8 {[%clk 0:00:04]} 40. h4 {[%clk 0:00:04]}  Rdb8 {[%clk 0:00:03]} 41. Nb4 {[%clk 0:00:05]}  Kd7 {[%clk 0:00:03]} 42. Rd3+ {[%clk 0:00:05]}  Kc7 {[%clk 0:00:03]} 43. Ra3 {[%clk 0:00:05]}  Ra5 {[%clk 0:00:02]} 44. e4 {[%clk 0:00:04]}  Rbb5 {[%clk 0:00:03]} 45. Nd3 {[%clk 0:00:04]}  f6 {[%clk 0:00:03]} 46. f5 {[%clk 0:00:02]}  gxf5 {[%clk 0:00:03]} 47. exf5 {[%clk 0:00:03]}  e5 {[%clk 0:00:03]} 48. Kc3 {[%clk 0:00:02]}  Kc6 {[%clk 0:00:03]} 49. Kc4 {[%clk 0:00:02]}  Rxc5+ {[%clk 0:00:03]} 50. Nxc5 {[%clk 0:00:03]}  Rxc5+ {[%clk 0:00:04]} 51. Kb4 {[%clk 0:00:04]}  Rd5 {[%clk 0:00:05]} 52. Rc3+ {[%clk 0:00:04]}  Kd6 {[%clk 0:00:04]} 53. Rc8 {[%clk 0:00:03]}  Rd4+ {[%clk 0:00:04]} 54. Kb5 {[%clk 0:00:04]}  Rg4 {[%clk 0:00:04]} 55. Rc6+ {[%clk 0:00:04]}  Ke7 {[%clk 0:00:04]} 56. Rc7+ {[%clk 0:00:04]}  Ke8 {[%clk 0:00:04]} 57. Kc5 {[%clk 0:00:03]}  Rxg3 {[%clk 0:00:03]} 58. Kd5 {[%clk 0:00:04]}  Rb3 {[%clk 0:00:02]} 59. Ra7 {[%clk 0:00:03]}  Rb5+ {[%clk 0:00:02]} 60. Kd6 {[%clk 0:00:02]}  Rb6+ {[%clk 0:00:02]} 61. Kd5 {[%clk 0:00:02]}  a3 {[%clk 0:00:01]} 62. Rxa3 {[%clk 0:00:02]}  Kf7 {[%clk 0:00:02]} 63. Ra7+ {[%clk 0:00:02]}  Kg8 {[%clk 0:00:02]} 64. Ra8+ {[%clk 0:00:03]}  Kg7 {[%clk 0:00:02]} 65. Ra7+ {[%clk 0:00:04]}  Kf8 {[%clk 0:00:03]} 66. Ra8+ {[%clk 0:00:04]}  Kf7 {[%clk 0:00:03]} 67. Ra7+ {[%clk 0:00:05]}  Kf8 {[%clk 0:00:03]} 68. Ra8+ {[%clk 0:00:06]}  Kf7 {[%clk 0:00:03]} 69. Ra7+ {[%clk 0:00:06]} 1/2-1/2

[Event "December 12 Late 2023"]
[Site "https://www.chess.com"]
[Date "2023.12.12"]
[Round "4"]
[White "Andreikin, Dmitry"]
[Black "Indjic, Aleksandar"]
[Result "1/2-1/2"]
[Board "3"]
[TimeControl "180+1"]
[WhiteFideId "4158814"]
[BlackFideId "911925"]
[WhiteElo "3110"]
[BlackElo "2902"]
[WhiteTeam "FID"]
[BlackTeam "SRB"]
[WhiteClock "0:00:07"]
[BlackClock "0:00:13"]

1. d4 {[%clk 0:02:55]}  d5 {[%clk 0:02:57]} 2. c4 {[%clk 0:02:55]}  dxc4 {[%clk 0:02:57]} 3. e3 {[%clk 0:02:55]}  e5 {[%clk 0:02:57]} 4. Bxc4 {[%clk 0:02:54]}  exd4 {[%clk 0:02:57]} 5. exd4 {[%clk 0:02:54]}  Bd6 {[%clk 0:02:57]} 6. Nf3 {[%clk 0:02:54]}  Nf6 {[%clk 0:02:57]} 7. O-O {[%clk 0:02:51]}  O-O {[%clk 0:02:56]} 8. Nc3 {[%clk 0:02:51]}  h6 {[%clk 0:02:55]} 9. Qc2 {[%clk 0:02:45]}  Nc6 {[%clk 0:02:12]} 10. h3 {[%clk 0:02:42]}  Kh8 {[%clk 0:02:05]} 11. Re1 {[%clk 0:02:39]}  a6 {[%clk 0:02:02]} 12. a3 {[%clk 0:02:37]}  b5 {[%clk 0:01:39]} 13. Ba2 {[%clk 0:02:36]}  Bb7 {[%clk 0:01:39]} 14. Be3 {[%clk 0:02:01]}  b4 {[%clk 0:01:37]} 15. Nd5 {[%clk 0:01:50]}  bxa3 {[%clk 0:01:33]} 16. Bb1 {[%clk 0:01:38]}  g6 {[%clk 0:01:32]} 17. Nxf6 {[%clk 0:01:33]}  Qxf6 {[%clk 0:01:33]} 18. Rxa3 {[%clk 0:01:17]}  Nb4 {[%clk 0:01:32]} 19. Qd1 {[%clk 0:01:07]}  Bxf3 {[%clk 0:01:30]} 20. Qxf3 {[%clk 0:01:07]}  Qxf3 {[%clk 0:01:29]} 21. gxf3 {[%clk 0:01:08]}  Kg7 {[%clk 0:01:29]} 22. Ra4 {[%clk 0:01:02]}  Rab8 {[%clk 0:01:29]} 23. Bd2 {[%clk 0:00:58]}  f5 {[%clk 0:01:26]} 24. Re6 {[%clk 0:00:52]}  Nd5 {[%clk 0:01:25]} 25. Bc1 {[%clk 0:00:32]}  Rfe8 {[%clk 0:01:12]} 26. Rxe8 {[%clk 0:00:30]}  Rxe8 {[%clk 0:01:13]} 27. Kf1 {[%clk 0:00:30]}  Bb4 {[%clk 0:01:12]} 28. Ba2 {[%clk 0:00:17]}  Re1+ {[%clk 0:01:04]} 29. Kg2 {[%clk 0:00:17]}  Rxc1 {[%clk 0:01:04]} 30. Bxd5 {[%clk 0:00:18]}  a5 {[%clk 0:01:04]} 31. b3 {[%clk 0:00:18]}  Rd1 {[%clk 0:00:53]} 32. Ra2 {[%clk 0:00:18]}  Rxd4 {[%clk 0:00:52]} 33. Bc6 {[%clk 0:00:19]}  Rd3 {[%clk 0:00:50]} 34. Ba4 {[%clk 0:00:19]}  Rd2 {[%clk 0:00:46]} 35. Rxd2 {[%clk 0:00:18]}  Bxd2 {[%clk 0:00:47]} 36. Kf1 {[%clk 0:00:11]}  Kf6 {[%clk 0:00:47]} 37. Be8 {[%clk 0:00:11]}  Bf4 {[%clk 0:00:38]} 38. Ke2 {[%clk 0:00:11]}  Bd6 {[%clk 0:00:37]} 39. Kf1 {[%clk 0:00:09]}  g5 {[%clk 0:00:36]} 40. Bd7 {[%clk 0:00:08]}  Ke5 {[%clk 0:00:37]} 41. Ke2 {[%clk 0:00:08]}  Bc5 {[%clk 0:00:36]} 42. Bc8 {[%clk 0:00:07]}  f4 {[%clk 0:00:34]} 43. Kd3 {[%clk 0:00:03]}  Bxf2 {[%clk 0:00:33]} 44. Bg4 {[%clk 0:00:04]}  Bb6 {[%clk 0:00:31]} 45. Kc4 {[%clk 0:00:04]}  Be3 {[%clk 0:00:17]} 46. Bh5 {[%clk 0:00:04]}  Kf5 {[%clk 0:00:17]} 47. Kb5 {[%clk 0:00:04]}  Bb6 {[%clk 0:00:14]} 48. Kc4 {[%clk 0:00:04]}  Kf6 {[%clk 0:00:14]} 49. Kd5 {[%clk 0:00:04]}  c5 {[%clk 0:00:14]} 50. Kc4 {[%clk 0:00:04]}  Ke5 {[%clk 0:00:12]} 51. Bg4 {[%clk 0:00:03]}  Ba7 {[%clk 0:00:12]} 52. Bh5 {[%clk 0:00:04]}  Kf5 {[%clk 0:00:12]} 53. Kd5 {[%clk 0:00:04]}  Bb6 {[%clk 0:00:12]} 54. Bg4+ {[%clk 0:00:03]}  Kg6 {[%clk 0:00:12]} 55. Bd7 {[%clk 0:00:04]}  h5 {[%clk 0:00:12]} 56. Be8+ {[%clk 0:00:04]}  Kh6 {[%clk 0:00:12]} 57. Bd7 {[%clk 0:00:03]}  g4 {[%clk 0:00:09]} 58. hxg4 {[%clk 0:00:03]}  h4 {[%clk 0:00:09]} 59. g5+ {[%clk 0:00:04]}  Kxg5 {[%clk 0:00:09]} 60. Bh3 {[%clk 0:00:04]}  Ba7 {[%clk 0:00:09]} 61. Kc4 {[%clk 0:00:04]}  Kf6 {[%clk 0:00:07]} 62. Kd5 {[%clk 0:00:05]}  Bb6 {[%clk 0:00:07]} 63. Bg4 {[%clk 0:00:05]}  Ba7 {[%clk 0:00:06]} 64. Bh3 {[%clk 0:00:05]}  Bb6 {[%clk 0:00:06]} 65. Bg4 {[%clk 0:00:06]}  Kg5 {[%clk 0:00:05]} 66. Bh3 {[%clk 0:00:06]}  Kg6 {[%clk 0:00:06]} 67. Kc4 {[%clk 0:00:06]}  Kf6 {[%clk 0:00:06]} 68. Kd5 {[%clk 0:00:06]}  Ke7 {[%clk 0:00:07]} 69. Bg4 {[%clk 0:00:06]}  Kd8 {[%clk 0:00:07]} 70. Bh3 {[%clk 0:00:06]}  Kc7 {[%clk 0:00:07]} 71. Bg4 {[%clk 0:00:06]}  Ba7 {[%clk 0:00:07]} 72. Bh3 {[%clk 0:00:06]}  a4 {[%clk 0:00:06]} 73. bxa4 {[%clk 0:00:05]}  Kb6 {[%clk 0:00:07]} 74. Kc4 {[%clk 0:00:06]}  Ka5 {[%clk 0:00:07]} 75. Kb3 {[%clk 0:00:06]}  Bb8 {[%clk 0:00:08]} 76. Bg4 {[%clk 0:00:06]}  Be5 {[%clk 0:00:08]} 77. Bh3 {[%clk 0:00:06]}  Bd4 {[%clk 0:00:08]} 78. Bg4 {[%clk 0:00:07]}  Be3 {[%clk 0:00:09]} 79. Bh3 {[%clk 0:00:07]}  Bd2 {[%clk 0:00:10]} 80. Bg4 {[%clk 0:00:07]}  Bb4 {[%clk 0:00:10]} 81. Bh3 {[%clk 0:00:07]}  Kb6 {[%clk 0:00:10]} 82. Kc4 {[%clk 0:00:07]}  Kc6 {[%clk 0:00:11]} 83. Bg4 {[%clk 0:00:07]}  Kd6 {[%clk 0:00:11]} 84. Bh3 {[%clk 0:00:07]}  Kc6 {[%clk 0:00:11]} 85. Bg4 {[%clk 0:00:08]}  Kb6 {[%clk 0:00:12]} 86. Bh3 {[%clk 0:00:08]}  Ka5 {[%clk 0:00:12]} 87. Kb3 {[%clk 0:00:08]}  Kb6 {[%clk 0:00:13]} 88. Kc4 {[%clk 0:00:07]} 1/2-1/2

[Event "December 12 Late 2023"]
[Site "https://www.chess.com"]
[Date "2023.12.12"]
[Round "4"]
[White "Popov, Konstantin"]
[Black "Lazavik, Denis"]
[Result "0-1"]
[Board "6"]
[TimeControl "180+1"]
[WhiteFideId "34137910"]
[BlackFideId "13515110"]
[WhiteElo "2876"]
[BlackElo "3057"]
[WhiteTeam "FID"]
[BlackTeam "BLR"]
[WhiteClock "0:00:01"]
[BlackClock "0:00:09"]

1. e4 {[%clk 0:03:00]}  c5 {[%clk 0:02:59]} 2. Nf3 {[%clk 0:03:01]}  e6 {[%clk 0:02:59]} 3. d4 {[%clk 0:03:01]}  cxd4 {[%clk 0:03:00]} 4. Nxd4 {[%clk 0:03:02]}  a6 {[%clk 0:03:01]} 5. a3 {[%clk 0:03:01]}  Qc7 {[%clk 0:02:59]} 6. c4 {[%clk 0:03:01]}  Nf6 {[%clk 0:02:58]} 7. Nc3 {[%clk 0:03:01]}  d6 {[%clk 0:02:50]} 8. Be3 {[%clk 0:03:01]}  Be7 {[%clk 0:02:50]} 9. Rc1 {[%clk 0:03:01]}  b6 {[%clk 0:02:49]} 10. f3 {[%clk 0:03:01]}  Bb7 {[%clk 0:02:48]} 11. b4 {[%clk 0:02:53]}  Nbd7 {[%clk 0:02:48]} 12. Be2 {[%clk 0:02:52]}  O-O {[%clk 0:02:48]} 13. g4 {[%clk 0:02:49]}  Ne5 {[%clk 0:02:43]} 14. g5 {[%clk 0:02:49]}  Nfd7 {[%clk 0:02:43]} 15. f4 {[%clk 0:02:49]}  Nc6 {[%clk 0:02:30]} 16. Nd5 {[%clk 0:02:40]}  Qd8 {[%clk 0:02:30]} 17. Nxc6 {[%clk 0:02:34]}  Bxc6 {[%clk 0:02:29]} 18. Nxe7+ {[%clk 0:02:33]}  Qxe7 {[%clk 0:02:30]} 19. Bf3 {[%clk 0:02:34]}  f5 {[%clk 0:02:27]} 20. exf5 {[%clk 0:02:31]}  exf5 {[%clk 0:02:17]} 21. Kf2 {[%clk 0:02:31]}  Be4 {[%clk 0:02:10]} 22. Re1 {[%clk 0:02:27]}  Rae8 {[%clk 0:02:08]} 23. Kg3 {[%clk 0:02:16]}  Kh8 {[%clk 0:01:55]} 24. h4 {[%clk 0:02:15]}  Qf7 {[%clk 0:01:46]} 25. h5 {[%clk 0:02:12]}  Bxf3 {[%clk 0:01:44]} 26. Qxf3 {[%clk 0:02:10]}  Re4 {[%clk 0:01:45]} 27. Bf2 {[%clk 0:02:03]}  Rfe8 {[%clk 0:01:26]} 28. Red1 {[%clk 0:01:35]}  R8e6 {[%clk 0:01:17]} 29. Rd4 {[%clk 0:01:33]}  Kg8 {[%clk 0:01:10]} 30. Rcd1 {[%clk 0:01:32]}  Qe7 {[%clk 0:01:10]} 31. Kg2 {[%clk 0:01:24]}  h6 {[%clk 0:01:03]} 32. g6 {[%clk 0:01:17]}  Nf6 {[%clk 0:00:59]} 33. Bh4 {[%clk 0:00:39]}  Kf8 {[%clk 0:00:57]} 34. c5 {[%clk 0:00:33]}  Qb7 {[%clk 0:00:52]} 35. Rxe4 {[%clk 0:00:17]}  fxe4 {[%clk 0:00:50]} 36. Qe3 {[%clk 0:00:15]}  Ng4 {[%clk 0:00:34]} 37. Qe2 {[%clk 0:00:15]}  e3+ {[%clk 0:00:23]} 38. Kh3 {[%clk 0:00:06]}  Nf6 {[%clk 0:00:11]} 39. cxd6 {[%clk 0:00:07]}  Qd7 {[%clk 0:00:11]} 40. Bxf6 {[%clk 0:00:06]}  Rxd6+ {[%clk 0:00:09]} 41. Kg3 {[%clk 0:00:05]}  Rxd1 {[%clk 0:00:10]} 42. Be5 {[%clk 0:00:04]}  Rg1+ {[%clk 0:00:08]} 43. Kh2 {[%clk 0:00:01]}  Qd2 {[%clk 0:00:09]} 0-1

[Event "December 12 Late 2023"]
[Site "https://www.chess.com"]
[Date "2023.12.12"]
[Round "4"]
[White "Kazakouski, Valery"]
[Black "Bluebaum, Matthias"]
[Result "0-1"]
[Board "8"]
[TimeControl "180+1"]
[WhiteFideId "13507443"]
[BlackFideId "24651516"]
[WhiteElo "2831"]
[BlackElo "3037"]
[WhiteTeam "LTU"]
[BlackTeam "GER"]
[WhiteClock "0:01:10"]
[BlackClock "0:02:01"]

1. e4 {[%clk 0:03:00]}  e6 {[%clk 0:02:59]} 2. d4 {[%clk 0:02:59]}  d5 {[%clk 0:02:59]} 3. Nc3 {[%clk 0:03:00]}  Nf6 {[%clk 0:03:00]} 4. e5 {[%clk 0:03:00]}  Nfd7 {[%clk 0:03:00]} 5. f4 {[%clk 0:03:00]}  c5 {[%clk 0:03:01]} 6. Nf3 {[%clk 0:03:00]}  Nc6 {[%clk 0:03:02]} 7. Be3 {[%clk 0:03:01]}  a6 {[%clk 0:03:03]} 8. Qd2 {[%clk 0:02:59]}  b5 {[%clk 0:03:03]} 9. Be2 {[%clk 0:02:57]}  Be7 {[%clk 0:03:02]} 10. O-O {[%clk 0:02:55]}  O-O {[%clk 0:03:02]} 11. a3 {[%clk 0:02:51]}  Rb8 {[%clk 0:03:00]} 12. Nd1 {[%clk 0:02:50]}  a5 {[%clk 0:03:00]} 13. Nf2 {[%clk 0:02:49]}  b4 {[%clk 0:03:00]} 14. axb4 {[%clk 0:02:47]}  axb4 {[%clk 0:03:01]} 15. g4 {[%clk 0:02:38]}  cxd4 {[%clk 0:02:53]} 16. Nxd4 {[%clk 0:02:38]}  Nxd4 {[%clk 0:02:53]} 17. Bxd4 {[%clk 0:02:38]}  f6 {[%clk 0:02:54]} 18. Nd3 {[%clk 0:02:27]}  Bb7 {[%clk 0:02:46]} 19. Qe3 {[%clk 0:02:20]}  Kh8 {[%clk 0:02:40]} 20. Ra7 {[%clk 0:02:15]}  Bc6 {[%clk 0:02:30]} 21. exf6 {[%clk 0:02:08]}  Bxf6 {[%clk 0:02:29]} 22. g5 {[%clk 0:01:35]}  Bxd4 {[%clk 0:02:27]} 23. Qxd4 {[%clk 0:01:36]}  Bb5 {[%clk 0:02:09]} 24. Ne5 {[%clk 0:01:36]}  Nxe5 {[%clk 0:02:05]} 25. Bxb5 {[%clk 0:01:10]}  Rxb5 {[%clk 0:02:01]} 0-1

[Event "December 12 Late 2023"]
[Site "https://www.chess.com"]
[Date "2023.12.12"]
[Round "4"]
[White "Drygalov, Andrey"]
[Black "Gorovets, Andrey"]
[Result "0-1"]
[Board "9"]
[TimeControl "180+1"]
[WhiteFideId "24171735"]
[BlackFideId "13504037"]
[WhiteElo "3009"]
[BlackElo "2828"]
[WhiteTeam "RUS"]
[BlackTeam "BLR"]
[WhiteClock "0:00:00"]
[BlackClock "0:00:09"]

1. e4 {[%clk 0:03:00]}  c6 {[%clk 0:02:58]} 2. Nf3 {[%clk 0:03:00]}  d5 {[%clk 0:02:57]} 3. d3 {[%clk 0:03:01]}  g6 {[%clk 0:02:54]} 4. e5 {[%clk 0:03:01]}  Bg4 {[%clk 0:02:47]} 5. d4 {[%clk 0:02:57]}  e6 {[%clk 0:02:39]} 6. Nbd2 {[%clk 0:02:54]}  c5 {[%clk 0:02:39]} 7. h3 {[%clk 0:02:53]}  Bxf3 {[%clk 0:02:38]} 8. Nxf3 {[%clk 0:02:54]}  cxd4 {[%clk 0:02:39]} 9. Nxd4 {[%clk 0:02:53]}  Nc6 {[%clk 0:02:38]} 10. Bb5 {[%clk 0:02:44]}  Qb6 {[%clk 0:02:26]} 11. Be3 {[%clk 0:02:36]}  Bc5 {[%clk 0:02:23]} 12. O-O {[%clk 0:02:27]}  Ne7 {[%clk 0:02:16]} 13. Ba4 {[%clk 0:02:05]}  O-O {[%clk 0:02:10]} 14. c3 {[%clk 0:01:59]}  Nxe5 {[%clk 0:02:01]} 15. b4 {[%clk 0:01:57]}  Bxd4 {[%clk 0:02:01]} 16. Bxd4 {[%clk 0:01:55]}  Qc7 {[%clk 0:02:02]} 17. Re1 {[%clk 0:01:55]}  Nc4 {[%clk 0:02:02]} 18. Bb3 {[%clk 0:01:51]}  Nc6 {[%clk 0:01:59]} 19. Bc5 {[%clk 0:01:17]}  Rfd8 {[%clk 0:01:53]} 20. Bxc4 {[%clk 0:01:18]}  dxc4 {[%clk 0:01:52]} 21. Qg4 {[%clk 0:01:18]}  b5 {[%clk 0:01:50]} 22. a4 {[%clk 0:01:10]}  a6 {[%clk 0:01:47]} 23. Qg5 {[%clk 0:01:07]}  Rd5 {[%clk 0:01:38]} 24. Qf6 {[%clk 0:01:06]}  Qd8 {[%clk 0:01:32]} 25. Qf4 {[%clk 0:00:48]}  e5 {[%clk 0:01:09]} 26. Qe4 {[%clk 0:00:45]}  f5 {[%clk 0:01:08]} 27. Qe2 {[%clk 0:00:44]}  Rd3 {[%clk 0:01:03]} 28. Qa2 {[%clk 0:00:40]}  Rb8 {[%clk 0:00:59]} 29. axb5 {[%clk 0:00:35]}  axb5 {[%clk 0:01:00]} 30. Qa6 {[%clk 0:00:19]}  Qc8 {[%clk 0:00:58]} 31. Qa3 {[%clk 0:00:16]}  Qd7 {[%clk 0:00:55]} 32. Rac1 {[%clk 0:00:14]}  f4 {[%clk 0:00:47]} 33. f3 {[%clk 0:00:13]}  h5 {[%clk 0:00:44]} 34. Re2 {[%clk 0:00:13]}  g5 {[%clk 0:00:43]} 35. Rce1 {[%clk 0:00:12]}  g4 {[%clk 0:00:36]} 36. hxg4 {[%clk 0:00:13]}  hxg4 {[%clk 0:00:36]} 37. fxg4 {[%clk 0:00:13]}  Qxg4 {[%clk 0:00:23]} 38. Qa6 {[%clk 0:00:13]}  Qg6 {[%clk 0:00:23]} 39. Rf2 {[%clk 0:00:10]}  Kh7 {[%clk 0:00:18]} 40. Ba7 {[%clk 0:00:10]}  Rg8 {[%clk 0:00:11]} 41. Qxb5 {[%clk 0:00:08]}  Rg3 {[%clk 0:00:10]} 42. Qd5 {[%clk 0:00:06]}  f3 {[%clk 0:00:10]} 43. Qd7+ {[%clk 0:00:02]}  Rg7 {[%clk 0:00:10]} 44. Qd6 {[%clk 0:00:00]}  Qxd6 {[%clk 0:00:09]} 0-1